bitfinex/quotes_BTCUSD_20240731
["timestamp","ask_amount","ask_price","bid_price","bid_amount"]
[1722406744542,2.58356973,66460.0,66459.0,1e-06]
[1722406744944,2.48309468,66460.0,66459.0,1e-06]
[1722406745149,2.54846579,66460.0,66459.0,1e-06]
[1722406745353,2.02177845,66460.0,66459.0,1e-06]
[1722406745570,2.03577845,66460.0,66459.0,1e-06]
[1722406745796,1.85427845,66460.0,66459.0,1e-06]
[1722406746167,1.84027845,66460.0,66459.0,1e-06]
[1722406746572,1.85427845,66460.0,66459.0,1e-06]
[1722406746770,2.00497277,66460.0,66459.0,1e-06]
[1722406746973,1.99097277,66460.0,66459.0,1e-06]
[1722406747502,2.00497277,66460.0,66459.0,1e-06]
[1722406747695,1.97697277,66460.0,66459.0,1e-06]
[1722406747970,1.85474058,66460.0,66459.0,1e-06]
[1722406748176,1.99370285,66460.0,66459.0,1e-06]
[1722406748990,2.00770285,66460.0,66459.0,1e-06]
[1722406749847,2.56873485,66460.0,66459.0,1e-06]
[1722406750064,2.59173485,66460.0,66459.0,1e-06]
[1722406751295,2.57579488,66460.0,66459.0,1e-06]
[1722406751700,2.45277258,66460.0,66459.0,1e-06]
[1722406751876,2.58979518,66460.0,66459.0,1e-06]
[1722406752078,2.57579518,66460.0,66459.0,1e-06]
[1722406752275,2.58979518,66460.0,66459.0,1e-06]
[1722406752833,2.57579518,66460.0,66459.0,1e-06]
[1722406753173,2.58979518,66460.0,66459.0,1e-06]
[1722406753610,2.57591782,66460.0,66459.0,1e-06]
[1722406753857,1.92184822,66452.0,66444.0,0.009317]
[1722406754061,2.4478265,66452.0,66444.0,0.009317]
[1722406754307,2.5478265,66452.0,66444.0,0.009317]
[1722406754555,2.54801101,66452.0,66444.0,0.009317]
[1722406755315,1.53511922,66445.0,66444.0,0.009317]
[1722406755655,2.24708201,66445.0,66444.0,0.009317]
[1722406755789,2.52808201,66445.0,66444.0,0.009317]
[1722406755992,2.54808201,66445.0,66444.0,0.009317]
[1722406757131,2.55608201,66445.0,66444.0,0.009317]
[1722406757327,2.70677633,66445.0,66444.0,0.009317]
[1722406757587,2.56944658,66445.0,66444.0,0.009317]
[1722406757777,2.85843576,66445.0,66444.0,0.009317]
[1722406758243,2.86443576,66445.0,66444.0,0.009317]
[1722406758400,2.69273797,66445.0,66444.0,0.009317]
[1722406759217,2.67873797,66445.0,66444.0,0.009317]
[1722406759417,2.69873797,66445.0,66444.0,0.009317]
[1722406759674,2.71273797,66445.0,66444.0,0.009317]
[1722406759874,2.7015182,66445.0,66444.0,0.009317]
[1722406760082,2.6875182,66445.0,66444.0,0.009317]
[1722406760432,2.7015182,66445.0,66444.0,0.009317]
[1722406760843,2.7155182,66445.0,66444.0,0.009317]
[1722406761076,2.65052783,66445.0,66444.0,0.009317]
[1722406761314,2.63652783,66445.0,66444.0,0.009317]
[1722406761425,2.65083955,66445.0,66444.0,0.009317]
[1722406762347,2.65083955,66445.0,66444.0,0.009317]
[1722406762769,2.63683955,66445.0,66444.0,0.009317]
[1722406763176,2.65083955,66445.0,66444.0,0.009317]
[1722406763346,2.6506791,66445.0,66444.0,0.009317]
[1722406763954,2.6706791,66445.0,66444.0,0.009317]
[1722406764653,2.53242681,66445.0,66444.0,0.009317]
[1722406764860,2.67075613,66445.0,66444.0,0.009317]
[1722406765681,2.65075613,66445.0,66444.0,0.009317]
[1722406765889,2.67075613,66445.0,66444.0,0.009317]
[1722406766711,2.66075613,66445.0,66444.0,0.009317]
[1722406766914,2.67075613,66445.0,66444.0,0.009317]
[1722406767335,2.65075613,66445.0,66444.0,0.009317]
[1722406767547,2.67057055,66445.0,66444.0,0.009317]
[1722406767771,2.80238796,66445.0,66444.0,0.009317]
[1722406767991,2.82238796,66445.0,66444.0,0.009317]
[1722406769551,2.67057055,66445.0,66444.0,0.009317]
[1722406770648,2.65057055,66445.0,66444.0,0.009317]
[1722406770850,2.65029242,66445.0,66444.0,0.009317]
[1722406771212,2.51242681,66445.0,66444.0,0.009317]
[1722406771417,2.65027726,66445.0,66444.0,0.009317]
[1722406771824,2.67027726,66445.0,66444.0,0.009317]
[1722406774109,2.61766627,66445.0,66444.0,0.009317]
[1722406774283,2.66838309,66445.0,66444.0,0.009317]
[1722406774822,2.64038309,66445.0,66444.0,0.009317]
[1722406775035,0.17234622,66433.0,66432.0,0.009317]
[1722406775258,1.16104554,66433.0,66432.0,0.009317]
[1722406775472,1.76315554,66433.0,66432.0,0.009317]
[1722406775682,2.06421054,66433.0,66432.0,0.009317]
[1722406777263,2.08421054,66433.0,66432.0,0.009317]
[1722406777464,0.04181922,66432.0,66431.0,0.0005]
[1722406777667,2.62966972,66432.0,66431.0,0.0005]
[1722406777866,0.77454622,66425.0,66424.0,0.009317]
[1722406778062,2.05597216,66425.0,66424.0,0.009317]
[1722406778559,2.35706316,66425.0,66424.0,0.009317]
[1722406778757,2.53586316,66425.0,66424.0,0.009317]
[1722406779007,2.62526316,66425.0,66424.0,0.009317]
[1722406779216,2.70246316,66425.0,66424.0,0.009317]
[1722406779425,2.48726316,66425.0,66424.0,0.009317]
[1722406780465,2.49890455,66425.0,66424.0,0.009317]
[1722406780671,2.79999555,66425.0,66424.0,0.009317]
[1722406781077,2.81399608,66425.0,66424.0,1e-06]
[1722406781276,3.03579914,66425.0,66424.0,1e-06]
[1722406781482,2.78599608,66425.0,66424.0,1e-06]
[1722406781688,2.79999608,66425.0,66424.0,1e-06]
[1722406781892,2.81399608,66425.0,66424.0,1e-06]
[1722406782093,2.79999608,66425.0,66424.0,1e-06]
[1722406782300,3.00779914,66425.0,66424.0,1e-06]
[1722406782505,1.37699422,66412.0,66411.0,0.0005]
[1722406782710,2.33269327,66412.0,66411.0,0.0005]
[1722406782927,2.48187488,66412.0,66411.0,0.0005]
[1722406783102,2.11441204,66412.0,66411.0,0.0005]
[1722406783302,2.12868735,66412.0,66411.0,0.0005]
[1722406783505,1.97671262,66412.0,66411.0,0.0005]
[1722406783712,1.97743411,66412.0,66411.0,0.0005]
[1722406784636,1.99143411,66412.0,66411.0,0.0005]
[1722406784840,2.14212843,66412.0,66411.0,0.0005]
[1722406785041,2.12812843,66412.0,66411.0,0.0005]
[1722406785244,2.14212843,66412.0,66411.0,0.0005]
[1722406786510,2.16494361,66412.0,66411.0,0.0005]
[1722406786935,2.03033676,66412.0,66411.0,0.0005]
[1722406787154,2.14907449,66412.0,66411.0,0.0005]
[1722406787362,2.16307449,66412.0,66411.0,0.0005]
[1722406787567,2.29798132,66412.0,66411.0,0.0005]
[1722406787776,1.48603017,66412.0,66411.0,0.1379]
[1722406787983,1.40235173,66412.0,66411.0,0.1379]
[1722406788173,1.46325172,66412.0,66411.0,0.1379]
[1722406788335,1.47725172,66412.0,66411.0,0.1379]
[1722406788562,1.62794604,66412.0,66411.0,0.1379]
[1722406788902,1.90109604,66412.0,66411.0,0.1379]
[1722406789043,1.61394604,66412.0,66411.0,0.1379]
[1722406789263,1.62394604,66412.0,66411.0,0.0766]
[1722406789498,2.04600287,66412.0,66411.0,0.0766]
[1722406789876,1.74885287,66412.0,66411.0,0.0766]
[1722406790186,1.6144634,66412.0,66411.0,0.0766]
[1722406790400,1.44976908,66412.0,66411.0,0.0766]
[1722406790598,1.34047726,66412.0,66411.0,0.0766]
[1722406790773,1.48940644,66412.0,66411.0,0.0766]
[1722406791245,1.46540644,66412.0,66411.0,0.0766]
[1722406791434,1.38065954,66412.0,66411.0,0.1418]
[1722406791651,1.39465954,66412.0,66411.0,0.1418]
[1722406791865,1.38065954,66412.0,66411.0,0.1418]
[1722406792325,1.39465954,66412.0,66411.0,0.1418]
[1722406792538,1.46808621,66412.0,66411.0,0.1418]
[1722406792779,1.45408621,66412.0,66411.0,0.1418]
[1722406793002,1.46808621,66412.0,66411.0,0.1418]
[1722406793430,1.46797441,66412.0,66411.0,0.1418]
[1722406794082,1.09139774,66412.0,66411.0,0.1418]
[1722406794284,1.05883972,66412.0,66411.0,0.1418]
[1722406794494,0.69224774,66412.0,66411.0,0.1418]
[1722406794728,0.42424309,66412.0,66411.0,0.1418]
[1722406794919,0.32920804,66412.0,66411.0,0.1418]
[1722406795343,0.30120804,66412.0,66411.0,0.1418]
[1722406795543,0.16463304,66412.0,66411.0,0.1418]
[1722406795753,0.31520804,66412.0,66411.0,0.1418]
[1722406795958,0.16463304,66412.0,66411.0,0.1418]
[1722406796173,0.04496457,66416.0,66412.0,0.1396]
[1722406796328,0.15063304,66414.0,66413.0,0.1449]
[1722406796537,0.15063304,66414.0,66413.0,0.1319]
[1722406796759,0.04496457,66420.0,66414.0,0.0703]
[1722406796917,0.001,66421.0,66414.0,0.0703]
[1722406796918,0.35214589,66419.0,66414.0,0.0703]
[1722406797116,0.15063304,66419.0,66414.0,0.00301108]
[1722406797331,0.001,66416.0,66412.0,0.301146]
[1722406797540,0.15063304,66419.0,66413.0,0.15358301]
[1722406797741,0.15063304,66419.0,66411.0,0.151075]
[1722406797946,0.00981922,66417.0,66411.0,0.151075]
[1722406798174,0.00981922,66417.0,66412.0,0.150573]
[1722406798375,0.001,66416.0,66411.0,0.151076]
[1722406799003,0.00981922,66417.0,66411.0,0.151076]
[1722406799205,0.001,66416.0,66411.0,0.151076]
[1722406799428,0.00981922,66415.0,66411.0,0.0015]
[1722406799627,0.00981922,66414.0,66412.0,0.0625]
[1722406799869,0.001,66416.0,66414.0,0.0617]
[1722406800094,0.001,66416.0,66415.0,0.1399]
[1722406800542,0.001,66416.0,66414.0,0.150568]
[1722406800543,0.15063304,66419.0,66416.0,0.1363]
[1722406800744,0.15063304,66419.0,66414.0,0.00301102]
[1722406800745,0.16045226,66419.0,66415.0,0.1363]
[1722406800945,0.00981922,66417.0,66416.0,0.1423]
[1722406802073,0.15063304,66419.0,66416.0,0.0767]
[1722406802237,0.001,66417.0,66416.0,0.01]
[1722406802843,0.01081922,66417.0,66416.0,0.1477]
[1722406803111,0.01081922,66417.0,66416.0,0.1457]
[1722406804015,0.00981922,66417.0,66416.0,0.1377]
[1722406804226,0.16038222,66417.0,66416.0,0.1417]
[1722406804427,0.16038222,66417.0,66416.0,0.1377]
[1722406804674,0.00981922,66417.0,66416.0,0.1377]
[1722406804898,0.01081922,66417.0,66416.0,0.1417]
[1722406805309,0.001,66417.0,66416.0,0.1417]
[1722406807030,0.001,66417.0,66416.0,0.1427]
[1722406807462,0.04600688,66417.0,66416.0,0.1427]
[1722406808036,0.04600688,66417.0,66416.0,0.293266]
[1722406808236,0.001,66417.0,66416.0,0.293266]
[1722406808459,0.001,66417.0,66416.0,0.594398]
[1722406808846,0.001,66417.0,66416.0,0.293266]
[1722406809042,0.001,66417.0,66416.0,0.1427]
[1722406809247,0.01081922,66417.0,66416.0,0.1427]
[1722406809664,0.05583085,66417.0,66416.0,0.1427]
[1722406809865,0.04601163,66417.0,66416.0,0.1427]
[1722406810064,0.05583085,66417.0,66416.0,0.1427]
[1722406811297,1.32550906,66417.0,66416.0,0.0817]
[1722406811502,1.370538,66417.0,66416.0,0.0817]
[1722406811699,1.33082948,66417.0,66416.0,0.005]
[1722406811904,1.28205163,66417.0,66416.0,0.005]
[1722406812109,1.33012695,66417.0,66416.0,0.004]
[1722406812782,1.33412695,66417.0,66416.0,0.004]
[1722406813142,1.33012695,66417.0,66416.0,0.004]
[1722406813325,1.33012695,66417.0,66412.0,0.0832]
[1722406813326,0.46353622,66413.0,66412.0,0.0832]
[1722406813528,0.66179878,66413.0,66412.0,0.0832]
[1722406813831,0.77438466,66413.0,66412.0,0.0832]
[1722406814032,0.7763833,66413.0,66412.0,0.0832]
[1722406814719,0.61416926,66413.0,66412.0,0.0872]
[1722406814929,0.77649162,66413.0,66412.0,0.0872]
[1722406815330,0.77849162,66413.0,66412.0,0.0872]
[1722406815958,1.3951965,66413.0,66412.0,0.0872]
[1722406816194,1.39732272,66413.0,66412.0,0.0872]
[1722406816407,1.39732272,66413.0,66412.0,0.0832]
[1722406816922,1.39732272,66413.0,66412.0,0.0872]
[1722406817674,1.39532272,66413.0,66412.0,0.0872]
[1722406817870,1.39732272,66413.0,66412.0,0.0872]
[1722406818276,0.9671692,66413.0,66412.0,0.0872]
[1722406818475,0.9631692,66413.0,66412.0,0.0872]
[1722406818712,1.07781087,66413.0,66412.0,0.0872]
[1722406819202,0.9651692,66413.0,66412.0,0.0872]
[1722406819558,0.9671692,66413.0,66412.0,0.0872]
[1722406820307,0.9651692,66413.0,66412.0,0.0872]
[1722406820508,0.65420498,66413.0,66412.0,0.0872]
[1722406820760,0.35305998,66413.0,66412.0,0.0872]
[1722406820947,0.3628792,66413.0,66412.0,0.0872]
[1722406821146,0.46572298,66413.0,66412.0,0.0872]
[1722406821568,0.16451794,66413.0,66412.0,0.15361126]
[1722406821768,0.1194504,66413.0,66412.0,0.30418626]
[1722406821970,0.002,66413.0,66412.0,0.60533626]
[1722406822210,0.002,66413.0,66412.0,0.90666704]
[1722406822354,0.002,66413.0,66412.0,1.20781704]
[1722406822559,0.002,66413.0,66412.0,0.90666704]
[1722406822807,0.002,66413.0,66412.0,0.90365578]
[1722406823133,0.002,66413.0,66412.0,0.90457978]
[1722406823543,0.002,66413.0,66412.0,1.20172978]
[1722406823849,0.001,66421.0,66420.0,0.893985]
[1722406824440,0.001,66421.0,66420.0,0.592871]
[1722406824649,0.001,66421.0,66420.0,0.59305178]
[1722406824855,0.001,66421.0,66420.0,0.893985]
[1722406825059,0.002,66421.0,66420.0,0.90116578]
[1722406826207,0.002,66421.0,66420.0,1.20227978]
[1722406827433,0.001,66421.0,66420.0,1.19527978]
[1722406827635,0.001,66421.0,66420.0,1.19827978]
[1722406827845,0.001,66421.0,66420.0,1.20727978]
[1722406827846,0.002,66421.0,66420.0,1.20727978]
[1722406828055,0.001,66421.0,66420.0,1.19827978]
[1722406828266,0.001,66421.0,66420.0,1.19527978]
[1722406828438,0.002,66421.0,66420.0,1.20627978]
[1722406828585,0.003,66421.0,66420.0,1.21627978]
[1722406829406,0.003,66421.0,66420.0,1.36691282]
[1722406829663,0.003,66421.0,66420.0,1.38991282]
[1722406830316,0.003,66421.0,66420.0,1.69102682]
[1722406830531,0.002,66421.0,66420.0,1.78102682]
[1722406830660,0.001,66421.0,66420.0,1.77002682]
[1722406830860,0.002,66421.0,66420.0,1.77902682]
[1722406831108,0.002,66421.0,66420.0,1.79302682]
[1722406831419,0.001,66421.0,66420.0,1.78002682]
[1722406831652,0.002,66421.0,66420.0,1.81802682]
[1722406831856,0.002,66421.0,66420.0,1.82693338]
[1722406832270,0.44444115,66440.0,66439.0,0.301028]
[1722406832477,0.44444115,66440.0,66439.0,0.451542]
[1722406832691,0.04499851,66446.0,66440.0,0.1426]
[1722406832899,0.04499851,66446.0,66442.0,0.150506]
[1722406833101,0.04499851,66446.0,66443.0,0.150504]
[1722406833323,0.00981922,66445.0,66441.0,0.228108]
[1722406833503,0.00981922,66446.0,66441.0,0.228109]
[1722406833756,0.00981922,66446.0,66441.0,0.0776]
[1722406834169,0.12034567,66447.0,66441.0,0.0776]
[1722406834578,0.12034567,66447.0,66443.0,0.150504]
[1722406834789,0.07534716,66447.0,66443.0,0.150504]
[1722406834963,0.00981922,66446.0,66441.0,0.0776]
[1722406835176,0.00981922,66444.0,66441.0,0.0776]
[1722406835710,0.00981922,66446.0,66441.0,0.228109]
[1722406835930,0.00981922,66444.0,66441.0,0.0776]
[1722406836363,0.07534716,66447.0,66441.0,0.0796]
[1722406836564,0.07534716,66447.0,66443.0,0.150504]
[1722406836768,0.07634716,66447.0,66441.0,0.233107]
[1722406837400,0.08516638,66447.0,66441.0,0.233107]
[1722406837617,0.00981922,66443.0,66441.0,0.0776]
[1722406837842,0.00981922,66444.0,66441.0,0.0776]
[1722406838034,0.16032222,66444.0,66443.0,0.005]
[1722406838241,0.00981922,66444.0,66443.0,0.005]
[1722406838627,0.07534716,66447.0,66443.0,0.005]
[1722406839076,0.00981922,66444.0,66443.0,0.005]
[1722406839279,0.00981922,66444.0,66441.0,0.0776]
[1722406839453,0.1505,66445.0,66441.0,0.0776]
[1722406839627,0.00981922,66443.0,66441.0,0.0826]
[1722406839838,0.00981922,66446.0,66441.0,0.0776]
[1722406840166,0.150493,66448.0,66443.0,0.001]
[1722406840398,0.150491,66449.0,66444.0,0.00300961]
[1722406840816,0.150491,66449.0,66445.0,0.0819]
[1722406841020,0.150491,66449.0,66446.0,0.0030096]
[1722406841809,0.152491,66449.0,66446.0,0.0030096]
[1722406842365,0.002,66449.0,66446.0,0.0030096]
[1722406842993,0.002,66449.0,66446.0,0.1535066]
[1722406843162,0.002,66449.0,66446.0,0.0040096]
[1722406843366,0.00981922,66452.0,66446.0,0.1535066]
[1722406843583,0.150484,66452.0,66447.0,0.0601]
[1722406843725,0.002,66449.0,66448.0,0.00300946]
[1722406844155,0.16030222,66453.0,66448.0,0.00300946]
[1722406844356,0.150483,66453.0,66448.0,0.00300946]
[1722406844623,0.300957,66455.0,66448.0,0.00300946]
[1722406844624,0.0628,66458.0,66449.0,0.22809]
[1722406844849,0.16029522,66456.0,66450.0,0.00300924]
[1722406845620,0.150476,66456.0,66450.0,0.00300924]
[1722406845821,0.002,66459.0,66450.0,0.00300924]
[1722406845822,0.150469,66459.0,66452.0,0.150484]
[1722406846025,0.150469,66459.0,66453.0,0.0789]
[1722406846351,0.150467,66460.0,66454.0,0.00300917]
[1722406846553,0.00981922,66456.0,66453.0,0.0789]
[1722406846789,0.01181922,66456.0,66453.0,0.0789]
[1722406846935,0.00981922,66455.0,66453.0,0.0789]
[1722406847141,0.00981922,66454.0,66453.0,0.0789]
[1722406847352,0.150478,66455.0,66453.0,0.0789]
[1722406847353,0.00981922,66455.0,66453.0,0.0789]
[1722406847974,0.00981922,66454.0,66453.0,0.0789]
[1722406848512,0.00981922,66455.0,66453.0,0.0789]
[1722406849178,0.76421922,66454.0,66453.0,0.0789]
[1722406849403,0.00981922,66450.0,66449.0,0.0829]
[1722406849826,0.16029822,66455.0,66449.0,0.0829]
[1722406850032,0.00981922,66454.0,66453.0,0.006]
[1722406850238,0.00981922,66454.0,66449.0,0.0829]
[1722406850440,0.00981922,66455.0,66449.0,0.233389]
[1722406850649,0.16029722,66455.0,66453.0,0.002]
[1722406850852,0.00981922,66454.0,66453.0,0.002]
[1722406851050,0.150478,66455.0,66453.0,0.002]
[1722406851051,0.16029722,66455.0,66453.0,0.002]
[1722406851353,0.16029922,66454.0,66453.0,0.003]
[1722406851943,0.16029922,66454.0,66453.0,0.002]
[1722406852174,0.00981922,66455.0,66453.0,0.002]
[1722406852357,0.00981922,66456.0,66453.0,0.003]
[1722406852593,0.150471,66458.0,66454.0,0.08520915]
[1722406852809,0.0651,66461.0,66454.0,0.23568715]
[1722406853007,0.150464,66461.0,66454.0,0.23568715]
[1722406853221,0.00981922,66462.0,66456.0,0.150474]
[1722406853435,0.00981922,66463.0,66457.0,0.150472]
[1722406853658,0.05182445,66462.0,66454.0,0.0822]
[1722406853864,0.05182445,66462.0,66457.0,0.150472]
[1722406854493,0.05182445,66462.0,66458.0,0.15047]
[1722406854696,0.05182445,66462.0,66459.0,0.0803]
[1722406854904,0.16110622,66464.0,66459.0,0.0803]
[1722406855075,0.00083,66464.0,66459.0,0.23377687]
[1722406855281,0.00083,66464.0,66459.0,0.08330887]
[1722406855500,0.01081922,66462.0,66459.0,0.08330887]
[1722406855925,0.00981922,66462.0,66459.0,0.08330887]
[1722406856148,0.01064922,66464.0,66459.0,0.08330887]
[1722406856413,0.00283,66464.0,66459.0,0.08330887]
[1722406856593,0.00283,66464.0,66459.0,0.08630887]
[1722406856810,0.00283,66464.0,66459.0,0.08330887]
[1722406857019,0.00283,66464.0,66459.0,0.23377687]
[1722406857237,0.00283,66464.0,66459.0,0.23977687]
[1722406857456,0.00981922,66463.0,66459.0,0.0803]
[1722406857663,0.00083,66464.0,66459.0,0.0803]
[1722406857869,0.01064922,66464.0,66459.0,0.0843]
[1722406858071,0.00981922,66463.0,66459.0,0.0843]
[1722406858275,0.01064922,66464.0,66459.0,0.233768]
[1722406858480,0.01064922,66464.0,66459.0,0.0833]
[1722406858678,0.01164922,66464.0,66459.0,0.0833]
[1722406859321,0.00183,66464.0,66460.0,0.00300884]
[1722406859739,0.00183,66464.0,66460.0,0.15347484]
[1722406860135,0.00981922,66463.0,66460.0,0.00300884]
[1722406860259,0.00183,66464.0,66460.0,0.150466]
[1722406860466,0.00083,66464.0,66461.0,0.00300876]
[1722406860907,0.05168053,66463.0,66461.0,0.00300876]
[1722406861256,0.00183,66464.0,66463.0,0.150459]
[1722406861452,0.00083,66464.0,66463.0,0.00300875]
[1722406861684,0.00083,66464.0,66463.0,0.15346775]
[1722406861854,0.00083,66464.0,66463.0,0.23266775]
[1722406862065,0.00083,66464.0,66463.0,0.229659]
[1722406862211,0.00083,66464.0,66463.0,0.530578]
[1722406862638,0.00083,66464.0,66463.0,0.531578]
[1722406863241,0.00083,66464.0,66463.0,0.898997]
[1722406863448,0.00083,66464.0,66463.0,1.41529678]
[1722406863844,0.00083,66464.0,66463.0,1.43829678]
[1722406864067,0.00083,66464.0,66463.0,1.68892982]
[1722406864269,0.00083,66464.0,66463.0,1.68792982]
[1722406864650,0.00083,66464.0,66463.0,1.69992982]
[1722406865281,0.00083,66464.0,66463.0,1.98884882]
[1722406865496,0.00083,66464.0,66463.0,2.00284882]
[1722406865698,0.00083,66464.0,66463.0,1.99684882]
[1722406866114,0.00083,66464.0,66463.0,2.01084882]
[1722406866369,0.00083,66464.0,66463.0,2.01684882]
[1722406866576,0.44528115,66482.0,66463.0,2.01684882]
[1722406866577,0.44444115,66481.0,66480.0,0.293621]
[1722406866777,0.44444115,66481.0,66480.0,0.0774]
[1722406866988,0.00084,66482.0,66480.0,0.0774]
[1722406867818,0.00981922,66481.0,66480.0,0.0774]
[1722406868023,0.00981922,66481.0,66480.0,0.0804]
[1722406868631,0.00981922,66481.0,66480.0,0.0774]
[1722406869108,0.00084,66482.0,66480.0,0.0874]
[1722406869334,0.00084,66482.0,66480.0,0.0794]
[1722406869517,0.00084,66482.0,66480.0,0.22982]
[1722406869753,0.01065922,66482.0,66480.0,0.0874]
[1722406869955,0.01065922,66482.0,66480.0,0.01]
[1722406869956,0.07191922,66481.0,66480.0,0.01]
[1722406870158,0.0621,66481.0,66480.0,0.002]
[1722406870373,0.01065922,66482.0,66480.0,0.007]
[1722406870582,0.16023722,66481.0,66480.0,0.007]
[1722406870758,0.00981922,66481.0,66480.0,0.01]
[1722406870910,0.00084,66482.0,66480.0,0.01]
[1722406871118,0.00084,66482.0,66481.0,0.38484488]
[1722406871335,0.01065922,66482.0,66481.0,0.081]
[1722406872149,0.00084,66482.0,66481.0,0.081]
[1722406872352,0.01065922,66482.0,66481.0,0.081]
[1722406873071,0.00084,66482.0,66481.0,0.081]
[1722406873620,0.01065922,66482.0,66481.0,0.088]
[1722406873765,0.01065922,66482.0,66481.0,0.09]
[1722406874004,0.00084,66482.0,66481.0,0.083]
[1722406874370,0.00084,66482.0,66481.0,0.081]
[1722406874579,0.01065922,66482.0,66481.0,0.081]
[1722406874806,0.01065922,66482.0,66481.0,0.001]
[1722406875213,0.01065922,66482.0,66478.0,0.15935467]
[1722406875431,0.16107522,66482.0,66481.0,0.006]
[1722406875630,0.00084,66482.0,66481.0,0.006]
[1722406875966,0.00084,66482.0,66481.0,0.013]
[1722406876313,0.00084,66482.0,66477.0,0.229427]
[1722406876519,0.00084,66482.0,66481.0,0.005]
[1722406876731,0.00084,66482.0,66481.0,0.007]
[1722406876943,0.00084,66482.0,66481.0,0.002]
[1722406877128,0.00084,66482.0,66481.0,0.007]
[1722406878107,0.00084,66482.0,66481.0,0.01000789]
[1722406878451,0.00084,66482.0,66481.0,0.29062589]
[1722406878657,0.00084,66482.0,66481.0,1.213129]
[1722406878880,0.00084,66482.0,66481.0,1.21830978]
[1722406879088,0.00084,66482.0,66481.0,1.21330978]
[1722406879495,0.00084,66482.0,66481.0,1.22030978]
[1722406879694,0.00084,66482.0,66481.0,1.21330978]
[1722406880100,0.00084,66482.0,66481.0,1.227129]
[1722406880378,0.00084,66482.0,66481.0,1.21330978]
[1722406880584,0.00084,66482.0,66481.0,1.21630978]
[1722406880995,0.00084,66482.0,66481.0,1.21330978]
[1722406881203,0.00084,66482.0,66481.0,1.225129]
[1722406881417,0.00084,66482.0,66481.0,0.0873]
[1722406881815,0.00084,66482.0,66481.0,0.1013]
[1722406882021,0.00084,66482.0,66481.0,0.251718]
[1722406882848,0.00084,66482.0,66481.0,0.552555]
[1722406883987,0.00084,66482.0,66481.0,0.853392]
[1722406884336,0.00084,66482.0,66481.0,0.876392]
[1722406885913,0.00084,66482.0,66481.0,1.17740978]
[1722406886136,0.00084,66482.0,66481.0,1.177229]
[1722406886334,0.00084,66482.0,66481.0,0.876392]
[1722406888111,0.00084,66482.0,66481.0,0.853392]
[1722406888446,0.00084,66482.0,66481.0,0.552555]
[1722406888802,0.00084,66482.0,66481.0,0.251718]
[1722406889394,0.00084,66482.0,66481.0,0.552555]
[1722406890951,0.00084,66482.0,66481.0,0.853392]
[1722406891957,0.00084,66482.0,66481.0,1.17740978]
[1722406892749,0.00084,66482.0,66481.0,1.177229]
[1722406896234,0.00084,66482.0,66481.0,1.17740978]
[1722406896779,0.00084,66482.0,66481.0,1.32804282]
[1722406896976,0.00084,66482.0,66481.0,1.42804282]
[1722406897624,0.00084,66482.0,66481.0,1.49424282]
[1722406899884,0.00084,66482.0,66481.0,1.50424282]
[1722406900066,0.00084,66482.0,66481.0,1.51424282]
[1722406901508,0.00084,66482.0,66481.0,1.49406204]
[1722406901685,0.00084,66482.0,66481.0,1.50406204]
[1722406902715,0.00084,66482.0,66481.0,1.49406204]
[1722406902918,0.00084,66482.0,66481.0,1.50406204]
[1722406903108,0.00084,66482.0,66481.0,1.49406204]
[1722406903355,0.00084,66482.0,66481.0,0.976392]
[1722406903560,0.00084,66482.0,66481.0,0.577255]
[1722406903764,0.00084,66482.0,66481.0,0.026]
[1722406903975,0.01065922,66482.0,66481.0,0.026]
[1722406904201,0.01181045,66482.0,66481.0,0.026]
[1722406904411,0.2141921,66482.0,66481.0,0.026]
[1722406904615,0.30316417,66482.0,66481.0,0.026]
[1722406904822,0.06062487,66482.0,66481.0,0.026]
[1722406905029,0.15083522,66482.0,66481.0,0.026]
[1722406905242,0.06071183,66482.0,66481.0,0.026]
[1722406905454,0.06149345,66482.0,66481.0,0.026]
[1722406905660,0.65116083,66482.0,66481.0,0.026]
[1722406905866,0.35032783,66482.0,66481.0,0.026]
[1722406906065,0.65116083,66482.0,66481.0,0.026]
[1722406906268,0.95199383,66482.0,66481.0,0.026]
[1722406906395,0.65116083,66482.0,66481.0,0.014]
[1722406906597,0.65116083,66482.0,66480.0,0.2]
[1722406906598,0.16023722,66481.0,66480.0,0.2]
[1722406906799,0.51112683,66481.0,66480.0,0.2]
[1722406907009,0.21028983,66481.0,66480.0,0.2]
[1722406907370,0.51112683,66481.0,66480.0,0.2]
[1722406907776,0.21028983,66481.0,66480.0,0.2]
[1722406908608,0.20059757,66481.0,66480.0,0.2]
[1722406908814,0.21041679,66481.0,66480.0,0.2]
[1722406909018,0.21041689,66481.0,66480.0,0.2]
[1722406909217,0.51125389,66481.0,66480.0,0.2]
[1722406909667,0.6465926,66481.0,66480.0,0.2]
[1722406909901,0.6465926,66481.0,66480.0,0.205]
[1722406910367,0.6485926,66481.0,66480.0,0.205]
[1722406910584,0.6465926,66481.0,66480.0,0.205]
[1722406910787,0.64671583,66481.0,66480.0,0.205]
[1722406911336,0.19546083,66481.0,66480.0,0.205]
[1722406911646,0.34687883,66481.0,66480.0,0.2]
[1722406912069,0.5974445,66481.0,66480.0,0.2]
[1722406912259,0.46407422,66481.0,66480.0,0.2]
[1722406912497,0.46307422,66481.0,66480.0,0.205]
[1722406912624,0.46107422,66481.0,66480.0,0.2]
[1722406913032,0.46107422,66481.0,66480.0,0.204]
[1722406913231,0.64642298,66481.0,66480.0,0.2]
[1722406914098,0.34558598,66481.0,66480.0,0.2]
[1722406914660,0.04997848,66481.0,66480.0,0.2]
[1722406914864,0.06264,66482.0,66480.0,0.205]
[1722406914988,0.06264,66482.0,66480.0,0.35342797]
[1722406915208,0.001,66481.0,66480.0,0.35342797]
[1722406915563,0.01081922,66481.0,66480.0,0.20700797]
[1722406915773,0.00981922,66481.0,66480.0,0.2]
[1722406916050,0.00981922,66481.0,66480.0,0.207]